[Event "*** SCC Grand Prix: Titled Tuesday Blitz"]
[Site "Chess.com"]
[Date "2020.06.09"]
[Round "4"]
[White "2346PL"]
[Black "Munkhzul_Turmunkh"]
[Result "0-1"]
[WhiteElo "2407"]
[BlackElo "2601"]
[TimeControl "180+1"]
[EndTime "9:38:47 PDT"]
[Termination "Munkhzul_Turmunkh won by resignation"]

1. d4 {[%clk 0:03:00.9]} 1... Nf6 {[%clk 0:02:59.5]} 2. Bg5 {[%clk 0:03:01]}
2... d5 {[%clk 0:02:58.3]} 3. e3 {[%clk 0:03:00.8]} 3... c5 {[%clk 0:02:57.3]}
4. Nc3 {[%clk 0:02:58.3]} 4... e6 {[%clk 0:02:51.5]} 5. Nf3 {[%clk 0:02:55.9]}
5... Be7 {[%clk 0:02:44.1]} 6. dxc5 {[%clk 0:02:39.5]} 6... O-O {[%clk
0:02:38.2]} 7. Be2 {[%clk 0:02:31.9]} 7... Bxc5 {[%clk 0:02:36.2]} 8. e4 {[%clk
0:02:29]} 8... Qb6 {[%clk 0:01:48.5]} 9. Bxf6 {[%clk 0:02:24.7]} 9... Bxf2+
{[%clk 0:01:46]} 10. Kf1 {[%clk 0:02:24.5]} 10... gxf6 {[%clk 0:01:46.5]} 11. g3
{[%clk 0:02:07.2]} 11... e5 {[%clk 0:01:15]} 12. Kg2 {[%clk 0:02:07.1]} 12...
dxe4 {[%clk 0:01:06.6]} 13. Nxe4 {[%clk 0:02:03.7]} 13... Bc5 {[%clk 0:01:02.5]}
14. Qd2 {[%clk 0:01:52.5]} 14... Bf5 {[%clk 0:00:40.5]} 15. Nc3 {[%clk
0:01:43.7]} 15... Rd8 {[%clk 0:00:35.6]} 16. Qh6 {[%clk 0:01:42.2]} 16... Bg6
{[%clk 0:00:25.6]} 17. Rad1 {[%clk 0:01:33.1]} 17... Na6 {[%clk 0:00:24]} 18.
Nd5 {[%clk 0:01:32.3]} 18... Rxd5 {[%clk 0:00:10.6]} 19. Rxd5 {[%clk 0:01:33.2]}
19... Nb4 {[%clk 0:00:10.6]} 20. Rd7 {[%clk 0:01:24.5]} 20... Nxc2 {[%clk
0:00:08.3]} 21. Nh4 {[%clk 0:01:12.4]} 21... Ne3+ {[%clk 0:00:07.7]} 22. Kh3
{[%clk 0:01:12.7]} 22... Qe6+ {[%clk 0:00:06.3]} 23. g4 {[%clk 0:01:13]} 23...
Qxd7 {[%clk 0:00:05.6]} 24. b4 {[%clk 0:01:01.2]} 24... Bb6 {[%clk 0:00:05.3]}
25. Kg3 {[%clk 0:00:49]} 25... e4 {[%clk 0:00:04.8]} 26. g5 {[%clk 0:00:40.1]}
26... Qd6+ {[%clk 0:00:04.7]} 27. Kf2 {[%clk 0:00:39.7]} 27... Ng4+ {[%clk
0:00:04.5]} 28. Kg2 {[%clk 0:00:39.4]} 28... Nxh6 {[%clk 0:00:05.4]} 0-1

[Event "*** SCC Grand Prix: Titled Tuesday Blitz"]
[Site "Chess.com"]
[Date "2020.06.09"]
[Round "4"]
[White "Nastya_Rakhmangulova"]
[Black "dianamirza"]
[Result "1-0"]
[WhiteElo "2273"]
[BlackElo "2023"]
[TimeControl "180+1"]
[EndTime "9:38:47 PDT"]
[Termination "Nastya_Rakhmangulova won by resignation"]

1. e4 {[%clk 0:03:00.9]} 1... e5 {[%clk 0:02:58.9]} 2. Nf3 {[%clk 0:03:00.9]}
2... d6 {[%clk 0:02:55.7]} 3. d4 {[%clk 0:03:00.2]} 3... exd4 {[%clk 0:02:56.6]}
4. Qxd4 {[%clk 0:03:00.8]} 4... Nf6 {[%clk 0:02:56.8]} 5. Nc3 {[%clk 0:02:59.5]}
5... Nc6 {[%clk 0:02:56.4]} 6. Bb5 {[%clk 0:02:59.5]} 6... Bd7 {[%clk
0:02:55.8]} 7. Bxc6 {[%clk 0:02:59.3]} 7... Bxc6 {[%clk 0:02:56.7]} 8. O-O
{[%clk 0:02:59.1]} 8... Be7 {[%clk 0:02:55.5]} 9. Nd5 {[%clk 0:02:54.6]} 9...
O-O {[%clk 0:02:52]} 10. Nxe7+ {[%clk 0:02:50.2]} 10... Qxe7 {[%clk 0:02:51.2]}
11. Bg5 {[%clk 0:02:50.8]} 11... Bxe4 {[%clk 0:02:27.2]} 12. Bxf6 {[%clk
0:02:07.9]} 12... gxf6 {[%clk 0:02:26.1]} 13. Nd2 {[%clk 0:02:08.5]} 13... Bg6
{[%clk 0:02:11.2]} 14. Rae1 {[%clk 0:01:43.5]} 14... Qd8 {[%clk 0:02:09.8]} 15.
Ne4 {[%clk 0:01:42]} 15... Bxe4 {[%clk 0:02:04.6]} 16. Rxe4 {[%clk 0:01:42.9]}
16... f5 {[%clk 0:02:01.5]} 17. Rf4 {[%clk 0:01:38.4]} 17... Qg5 {[%clk
0:01:57.6]} 18. h4 {[%clk 0:01:35.3]} 18... Qg7 {[%clk 0:01:18.5]} 19. Qd5
{[%clk 0:01:33.8]} 19... Rae8 {[%clk 0:01:09.4]} 20. Rxf5 {[%clk 0:01:30.5]}
20... Re5 {[%clk 0:00:56.6]} 21. Rxe5 {[%clk 0:01:28.9]} 21... Qxe5 {[%clk
0:00:52.7]} 22. Qxb7 {[%clk 0:01:29.1]} 22... Kh8 {[%clk 0:00:46.4]} 23. c3
{[%clk 0:01:26.5]} 23... Rg8 {[%clk 0:00:45.7]} 24. Qxc7 {[%clk 0:01:20.8]}
24... Qe4 {[%clk 0:00:38.3]} 25. g3 {[%clk 0:01:13.6]} 25... Qxh4 {[%clk
0:00:36.1]} 26. Qxd6 {[%clk 0:01:13]} 26... Qh5 {[%clk 0:00:18.9]} 27. Re1
{[%clk 0:01:09.4]} 27... h6 {[%clk 0:00:14.9]} 28. Qe5+ {[%clk 0:00:32.1]} 28...
Kh7 {[%clk 0:00:13.4]} 29. Qxh5 {[%clk 0:00:31.2]} 1-0

[Event "*** SCC Grand Prix: Titled Tuesday Blitz"]
[Site "Chess.com"]
[Date "2020.06.09"]
[Round "4"]
[White "AshotParvanyan"]
[Black "BikingBrian"]
[Result "0-1"]
[WhiteElo "2437"]
[BlackElo "2310"]
[TimeControl "180+1"]
[EndTime "9:38:48 PDT"]
[Termination "BikingBrian won on time"]

1. e4 {[%clk 0:03:00.9]} 1... c5 {[%clk 0:02:59.5]} 2. Nf3 {[%clk 0:03:00.8]}
2... g6 {[%clk 0:02:59.4]} 3. c4 {[%clk 0:02:53.7]} 3... Nc6 {[%clk 0:02:58.2]}
4. d4 {[%clk 0:02:53.7]} 4... cxd4 {[%clk 0:02:59.1]} 5. Nxd4 {[%clk 0:02:54.1]}
5... Nf6 {[%clk 0:02:59.1]} 6. Nc3 {[%clk 0:02:53.3]} 6... d6 {[%clk 0:02:58.3]}
7. Be2 {[%clk 0:02:50.6]} 7... Nxd4 {[%clk 0:02:58.6]} 8. Qxd4 {[%clk
0:02:49.9]} 8... Bg7 {[%clk 0:02:59.5]} 9. Be3 {[%clk 0:02:43.4]} 9... O-O
{[%clk 0:02:57.8]} 10. Qd2 {[%clk 0:02:43.6]} 10... a5 {[%clk 0:02:57]} 11. f3
{[%clk 0:02:41.4]} 11... a4 {[%clk 0:02:57.2]} 12. O-O {[%clk 0:02:38.1]} 12...
Qa5 {[%clk 0:02:56.9]} 13. Rac1 {[%clk 0:02:32.1]} 13... Be6 {[%clk 0:02:56.7]}
14. Rfd1 {[%clk 0:02:25.7]} 14... Rfc8 {[%clk 0:02:56.5]} 15. Nb5 {[%clk
0:01:56.9]} 15... Qxd2 {[%clk 0:02:32]} 16. Rxd2 {[%clk 0:01:48.7]} 16... Nd7
{[%clk 0:02:30.2]} 17. Nd4 {[%clk 0:01:45.7]} 17... Nc5 {[%clk 0:02:25.2]} 18.
Kf2 {[%clk 0:01:27.9]} 18... Bd7 {[%clk 0:02:19.7]} 19. Bg5 {[%clk 0:01:17]}
19... Kf8 {[%clk 0:02:15.6]} 20. h4 {[%clk 0:01:15.2]} 20... Ne6 {[%clk
0:02:15.4]} 21. Nxe6+ {[%clk 0:01:06]} 21... Bxe6 {[%clk 0:02:15.2]} 22. Rdc2
{[%clk 0:00:46.4]} 22... a3 {[%clk 0:01:52.8]} 23. b3 {[%clk 0:00:46]} 23... Bb2
{[%clk 0:01:52.5]} 24. Rd1 {[%clk 0:00:43.1]} 24... b5 {[%clk 0:01:50.8]} 25.
Bc1 {[%clk 0:00:14.5]} 25... Bf6 {[%clk 0:01:25.5]} 26. h5 {[%clk 0:00:14.1]}
26... bxc4 {[%clk 0:01:22.8]} 27. Bxc4 {[%clk 0:00:11]} 27... Bxc4 {[%clk
0:01:22.7]} 28. bxc4 {[%clk 0:00:03.7]} 28... Ra4 {[%clk 0:01:21.9]} 29. hxg6
{[%clk 0:00:03.7]} 29... fxg6 {[%clk 0:01:19.2]} 30. Rd3 {[%clk 0:00:03.7]}
30... Rcxc4 {[%clk 0:01:14.4]} 31. Rxc4 {[%clk 0:00:04.4]} 31... Rxc4 {[%clk
0:01:14.4]} 32. Bxa3 {[%clk 0:00:04.2]} 32... Rc2+ {[%clk 0:01:14.6]} 33. Kg3
{[%clk 0:00:04]} 33... Rxa2 {[%clk 0:01:14.6]} 34. Bc1 {[%clk 0:00:04]} 34...
Kf7 {[%clk 0:01:13.5]} 35. Bf4 {[%clk 0:00:03.7]} 35... h5 {[%clk 0:01:11.5]}
36. Rb3 {[%clk 0:00:03.5]} 36... h4+ {[%clk 0:01:09.9]} 37. Kh3 {[%clk
0:00:03.8]} 37... g5 {[%clk 0:01:09.9]} 38. Be3 {[%clk 0:00:03.1]} 38... Re2
{[%clk 0:01:09.3]} 39. Ba7 {[%clk 0:00:02.2]} 39... Ke6 {[%clk 0:01:09.1]} 40.
Rb5 {[%clk 0:00:01.6]} 40... Be5 {[%clk 0:01:09]} 41. Bb8 {[%clk 0:00:01.4]}
41... Re1 {[%clk 0:01:08.2]} 42. Kg4 {[%clk 0:00:01.3]} 42... Kf6 {[%clk
0:01:07.2]} 0-1

[Event "*** SCC Grand Prix: Titled Tuesday Blitz"]
[Site "Chess.com"]
[Date "2020.06.09"]
[Round "4"]
[White "anastasiyakarlovych"]
[Black "publicaccountcze"]
[Result "1-0"]
[WhiteElo "1973"]
[BlackElo "2241"]
[TimeControl "180+1"]
[EndTime "9:38:48 PDT"]
[Termination "anastasiyakarlovych won on time"]

1. e4 {[%clk 0:03:00.9]} 1... e6 {[%clk 0:02:59.6]} 2. d4 {[%clk 0:02:59.8]}
2... d5 {[%clk 0:02:59.6]} 3. e5 {[%clk 0:02:59]} 3... c5 {[%clk 0:02:59.7]} 4.
dxc5 {[%clk 0:02:58]} 4... Bxc5 {[%clk 0:02:59.3]} 5. Qg4 {[%clk 0:02:57.9]}
5... Kf8 {[%clk 0:02:51.1]} 6. Bd3 {[%clk 0:02:56.5]} 6... Nc6 {[%clk
0:02:45.6]} 7. Nf3 {[%clk 0:02:56.2]} 7... Nge7 {[%clk 0:02:38.1]} 8. O-O {[%clk
0:02:50.4]} 8... Qc7 {[%clk 0:02:18]} 9. Re1 {[%clk 0:02:43]} 9... Bd7 {[%clk
0:02:09.6]} 10. c3 {[%clk 0:02:39]} 10... a5 {[%clk 0:02:03.1]} 11. Nbd2 {[%clk
0:02:29.3]} 11... Ng6 {[%clk 0:01:57.6]} 12. Qg3 {[%clk 0:02:27.6]} 12... a4
{[%clk 0:01:42]} 13. h4 {[%clk 0:02:25.9]} 13... Nge7 {[%clk 0:01:35]} 14. b4
{[%clk 0:02:12]} 14... axb3 {[%clk 0:01:32]} 15. Nxb3 {[%clk 0:02:11.5]} 15...
Bb6 {[%clk 0:01:30.4]} 16. a4 {[%clk 0:02:06.7]} 16... Nf5 {[%clk 0:01:20.7]}
17. Bxf5 {[%clk 0:01:43.6]} 17... exf5 {[%clk 0:01:19.7]} 18. Ba3+ {[%clk
0:01:43.3]} 18... Kg8 {[%clk 0:01:13.6]} 19. Bd6 {[%clk 0:01:41.9]} 19... Qc8
{[%clk 0:01:01.9]} 20. Nbd4 {[%clk 0:01:30.8]} 20... Be6 {[%clk 0:00:53.1]} 21.
Red1 {[%clk 0:01:17.4]} 21... g6 {[%clk 0:00:45.3]} 22. h5 {[%clk 0:01:10.7]}
22... Bc7 {[%clk 0:00:23.5]} 23. Ng5 {[%clk 0:01:03.7]} 23... Bxd6 {[%clk
0:00:18.6]} 24. exd6 {[%clk 0:01:03.6]} 24... Qd7 {[%clk 0:00:18.2]} 25. Ngxe6
{[%clk 0:00:59.4]} 25... fxe6 {[%clk 0:00:10.6]} 26. hxg6 {[%clk 0:00:59.2]}
26... h6 {[%clk 0:00:07.3]} 27. Nb5 {[%clk 0:00:51.8]} 27... Kg7 {[%clk
0:00:05.3]} 28. c4 {[%clk 0:00:47.6]} 28... dxc4 {[%clk 0:00:02.9]} 29. Nc7
{[%clk 0:00:45.2]} 1-0

[Event "*** SCC Grand Prix: Titled Tuesday Blitz"]
[Site "Chess.com"]
[Date "2020.06.09"]
[Round "4"]
[White "FairChess_on_YouTube"]
[Black "Shota_Azaladze"]
[Result "1/2-1/2"]
[WhiteElo "3027"]
[BlackElo "2799"]
[TimeControl "180+1"]
[EndTime "9:38:49 PDT"]
[Termination "Game drawn by repetition"]

1. d4 {[%clk 0:03:00.9]} 1... Nf6 {[%clk 0:02:59.4]} 2. c4 {[%clk 0:03:01.1]}
2... g6 {[%clk 0:02:59.5]} 3. Nc3 {[%clk 0:03:01.2]} 3... Bg7 {[%clk 0:02:59.8]}
4. e4 {[%clk 0:03:01.4]} 4... O-O {[%clk 0:02:59.8]} 5. Be3 {[%clk 0:03:00.8]}
5... d6 {[%clk 0:02:59.2]} 6. h3 {[%clk 0:03:01.2]} 6... e5 {[%clk 0:02:58.6]}
7. d5 {[%clk 0:03:01.6]} 7... a5 {[%clk 0:02:58.5]} 8. Bd3 {[%clk 0:03:01.3]}
8... Na6 {[%clk 0:02:58.5]} 9. Nge2 {[%clk 0:03:01.6]} 9... Nc5 {[%clk
0:02:58.3]} 10. Bc2 {[%clk 0:03:01.9]} 10... Nh5 {[%clk 0:02:47.9]} 11. Qd2
{[%clk 0:02:29.2]} 11... Bd7 {[%clk 0:02:38.9]} 12. O-O-O {[%clk 0:02:24.5]}
12... a4 {[%clk 0:02:37.6]} 13. g4 {[%clk 0:02:21.6]} 13... Nf4 {[%clk
0:02:37.1]} 14. Nxf4 {[%clk 0:02:20.8]} 14... exf4 {[%clk 0:02:38]} 15. Bd4
{[%clk 0:02:21.1]} 15... Be5 {[%clk 0:02:13.3]} 16. Bxe5 {[%clk 0:02:15.1]}
16... dxe5 {[%clk 0:02:14.2]} 17. f3 {[%clk 0:02:12.2]} 17... Ra6 {[%clk
0:02:05.4]} 18. h4 {[%clk 0:01:56.9]} 18... h6 {[%clk 0:02:01.8]} 19. h5 {[%clk
0:01:56.8]} 19... g5 {[%clk 0:02:01.6]} 20. Qf2 {[%clk 0:01:51.9]} 20... b6
{[%clk 0:01:51.7]} 21. Bd3 {[%clk 0:01:47]} 21... Qf6 {[%clk 0:01:48.5]} 22. Be2
{[%clk 0:01:46.9]} 22... Rfa8 {[%clk 0:01:47.9]} 23. Kd2 {[%clk 0:01:45.9]}
23... Qd6 {[%clk 0:01:47.6]} 24. Rb1 {[%clk 0:01:42.9]} 24... Nb7 {[%clk
0:01:46.5]} 25. Rhc1 {[%clk 0:01:41.7]} 25... Qb4 {[%clk 0:01:39.3]} 26. Ke1
{[%clk 0:01:38.3]} 26... Nd6 {[%clk 0:01:20.3]} 27. a3 {[%clk 0:01:31.7]} 27...
Qc5 {[%clk 0:01:19.8]} 28. Nb5 {[%clk 0:01:25.3]} 28... Rc8 {[%clk 0:01:07.1]}
29. Rc3 {[%clk 0:01:18.4]} 29... Ra5 {[%clk 0:01:06.1]} 30. Rbc1 {[%clk
0:01:03.7]} 30... Kf8 {[%clk 0:01:05.5]} 31. Kf1 {[%clk 0:01:02.8]} 31... Ke7
{[%clk 0:01:05.3]} 32. R3c2 {[%clk 0:00:59.1]} 32... Kd8 {[%clk 0:01:04.7]} 33.
Nc3 {[%clk 0:00:56.3]} 33... Qxf2+ {[%clk 0:01:03.5]} 34. Kxf2 {[%clk
0:00:56.3]} 34... Nb7 {[%clk 0:01:04.1]} 35. Na2 {[%clk 0:00:53.7]} 35... Nc5
{[%clk 0:01:03.8]} 36. Nb4 {[%clk 0:00:53.8]} 36... Ke7 {[%clk 0:01:04.4]} 37.
Rd1 {[%clk 0:00:53.2]} 37... Kd6 {[%clk 0:01:04.5]} 38. Rcd2 {[%clk 0:00:52.5]}
38... Raa8 {[%clk 0:01:02.1]} 39. Rc2 {[%clk 0:00:51.7]} 39... f6 {[%clk
0:01:01.9]} 40. Rc3 {[%clk 0:00:51.9]} 40... Be8 {[%clk 0:01:02.1]} 41. Rd2
{[%clk 0:00:51.8]} 41... Rd8 {[%clk 0:01:02.1]} 42. Bd1 {[%clk 0:00:51.8]} 42...
Rdc8 {[%clk 0:01:01.2]} 43. Nd3 {[%clk 0:00:51.7]} 43... Ra5 {[%clk 0:00:59.8]}
44. Ke2 {[%clk 0:00:50.7]} 44... Nxd3 {[%clk 0:00:57.4]} 45. Kxd3 {[%clk
0:00:44.7]} 45... Rc5 {[%clk 0:00:57.9]} 46. Be2 {[%clk 0:00:43.7]} 46... Ra8
{[%clk 0:00:58.4]} 47. Kc2 {[%clk 0:00:42.5]} 47... Bd7 {[%clk 0:00:58.4]} 48.
Kc1 {[%clk 0:00:42.7]} 48... Be8 {[%clk 0:00:58.6]} 49. Rdc2 {[%clk 0:00:42.5]}
49... Bd7 {[%clk 0:00:59]} 50. Kb1 {[%clk 0:00:41.9]} 50... Be8 {[%clk
0:00:59.3]} 51. Kc1 {[%clk 0:00:41.1]} 51... Bd7 {[%clk 0:00:59.5]} 52. Kb1
{[%clk 0:00:41.5]} 52... Be8 {[%clk 0:00:59.8]} 53. Kc1 {[%clk 0:00:42]} 1/2-1/2

[Event "*** SCC Grand Prix: Titled Tuesday Blitz"]
[Site "Chess.com"]
[Date "2020.06.09"]
[Round "4"]
[White "VincentKeymer"]
[Black "Nbk90"]
[Result "1-0"]
[WhiteElo "2757"]
[BlackElo "2542"]
[TimeControl "180+1"]
[EndTime "9:38:49 PDT"]
[Termination "VincentKeymer won by resignation"]

1. Nf3 {[%clk 0:03:00.9]} 1... Nf6 {[%clk 0:02:58.7]} 2. c4 {[%clk 0:03:00.6]}
2... b6 {[%clk 0:02:58.6]} 3. d4 {[%clk 0:02:58.3]} 3... Bb7 {[%clk 0:02:59.2]}
4. g3 {[%clk 0:02:58.9]} 4... g6 {[%clk 0:02:59.4]} 5. Bg2 {[%clk 0:02:59.2]}
5... Bg7 {[%clk 0:02:59.8]} 6. O-O {[%clk 0:02:59.7]} 6... O-O {[%clk
0:03:00.4]} 7. Qd3 {[%clk 0:03:00.3]} 7... Na6 {[%clk 0:02:43.4]} 8. Nc3 {[%clk
0:02:54.2]} 8... Nb4 {[%clk 0:02:39.6]} 9. Qb1 {[%clk 0:02:51.9]} 9... a5 {[%clk
0:02:29.5]} 10. a3 {[%clk 0:02:51.4]} 10... Na6 {[%clk 0:02:29.5]} 11. e4 {[%clk
0:02:49.8]} 11... d6 {[%clk 0:02:27.8]} 12. Qd3 {[%clk 0:02:48.3]} 12... Nd7
{[%clk 0:02:25.1]} 13. Be3 {[%clk 0:02:29]} 13... c5 {[%clk 0:02:11.8]} 14. d5
{[%clk 0:02:27.6]} 14... Nc7 {[%clk 0:02:11.3]} 15. h4 {[%clk 0:02:20.7]} 15...
h5 {[%clk 0:01:58.6]} 16. Bh3 {[%clk 0:02:20.3]} 16... Bc8 {[%clk 0:01:56.1]}
17. Kg2 {[%clk 0:02:20.3]} 17... Nf6 {[%clk 0:01:48.4]} 18. Bxc8 {[%clk
0:02:14.6]} 18... Qxc8 {[%clk 0:01:49.3]} 19. Ng5 {[%clk 0:02:14.7]} 19... Ng4
{[%clk 0:01:44.7]} 20. Bd2 {[%clk 0:02:14.3]} 20... b5 {[%clk 0:01:36.2]} 21.
cxb5 {[%clk 0:02:11.1]} 21... Ne5 {[%clk 0:01:27.7]} 22. Qe2 {[%clk 0:02:08.9]}
22... c4 {[%clk 0:01:26.8]} 23. a4 {[%clk 0:02:06.9]} 23... e6 {[%clk
0:01:17.7]} 24. dxe6 {[%clk 0:01:50.7]} 24... Nxe6 {[%clk 0:01:17.1]} 25. Nd5
{[%clk 0:01:44.3]} 25... Qb7 {[%clk 0:01:08.3]} 26. Bc3 {[%clk 0:01:42.4]} 26...
Rfe8 {[%clk 0:01:02]} 27. Rad1 {[%clk 0:01:35]} 27... Nxg5 {[%clk 0:00:58.2]}
28. hxg5 {[%clk 0:01:35.9]} 28... Nd3 {[%clk 0:00:55.9]} 29. Rxd3 {[%clk
0:01:27.6]} 29... cxd3 {[%clk 0:00:53.7]} 30. Qxd3 {[%clk 0:01:28.1]} 30... Bxc3
{[%clk 0:00:39.5]} 31. Qxc3 {[%clk 0:01:24.2]} 31... Re6 {[%clk 0:00:34.8]} 32.
Rc1 {[%clk 0:01:19.9]} 32... Rxe4 {[%clk 0:00:25.7]} 33. Nf6+ {[%clk 0:01:15.6]}
33... Kf8 {[%clk 0:00:24.8]} 34. Nxe4 {[%clk 0:01:11.6]} 34... Qxe4+ {[%clk
0:00:24.6]} 35. Qf3 {[%clk 0:01:12]} 35... Qxf3+ {[%clk 0:00:19.4]} 36. Kxf3
{[%clk 0:01:12.9]} 36... Ke7 {[%clk 0:00:20.3]} 37. Rc6 {[%clk 0:01:11.2]} 37...
Ke6 {[%clk 0:00:20.4]} 38. Ra6 {[%clk 0:01:08.7]} 38... Rc8 {[%clk 0:00:19.4]}
39. Rxa5 {[%clk 0:01:08.7]} 39... Rc4 {[%clk 0:00:18.7]} 40. b6 {[%clk 0:01:08]}
40... Rb4 {[%clk 0:00:18.3]} 41. Rb5 {[%clk 0:01:08.1]} 41... Rxb5 {[%clk
0:00:18.1]} 42. axb5 {[%clk 0:01:09]} 42... Kd7 {[%clk 0:00:17.8]} 43. Ke4
{[%clk 0:01:09.2]} 43... Kc8 {[%clk 0:00:18.2]} 44. Kd5 {[%clk 0:01:09.1]} 44...
Kb7 {[%clk 0:00:19.1]} 45. Kxd6 {[%clk 0:01:09.4]} 45... Kxb6 {[%clk 0:00:20]}
46. Ke7 {[%clk 0:01:09.7]} 46... Kxb5 {[%clk 0:00:20.9]} 47. Kxf7 {[%clk
0:01:09.8]} 1-0

[Event "*** SCC Grand Prix: Titled Tuesday Blitz"]
[Site "Chess.com"]
[Date "2020.06.09"]
[Round "4"]
[White "GMKrikor"]
[Black "biaf13"]
[Result "1-0"]
[WhiteElo "2720"]
[BlackElo "2045"]
[TimeControl "180+1"]
[EndTime "9:38:53 PDT"]
[Termination "GMKrikor won by resignation"]

1. e4 {[%clk 0:03:00.9]} 1... c5 {[%clk 0:02:58.9]} 2. Nf3 {[%clk 0:03:00.8]}
2... d6 {[%clk 0:02:59.2]} 3. d4 {[%clk 0:03:00.7]} 3... cxd4 {[%clk 0:03:00.1]}
4. Nxd4 {[%clk 0:03:00.6]} 4... Nf6 {[%clk 0:03:00.7]} 5. Nc3 {[%clk 0:03:00.5]}
5... e6 {[%clk 0:02:59.1]} 6. g4 {[%clk 0:02:59.6]} 6... h6 {[%clk 0:02:58.7]}
7. Rg1 {[%clk 0:02:55]} 7... Nc6 {[%clk 0:02:57.3]} 8. Be3 {[%clk 0:02:54.3]}
8... Bd7 {[%clk 0:02:43.9]} 9. h4 {[%clk 0:02:44.5]} 9... Nxd4 {[%clk
0:02:39.7]} 10. Qxd4 {[%clk 0:02:32]} 10... Bc6 {[%clk 0:02:32.7]} 11. g5 {[%clk
0:02:23.3]} 11... hxg5 {[%clk 0:02:31.4]} 12. hxg5 {[%clk 0:02:24.2]} 12... Nd7
{[%clk 0:02:29.3]} 13. g6 {[%clk 0:02:24.4]} 13... f6 {[%clk 0:02:23.7]} 14.
O-O-O {[%clk 0:02:21.6]} 14... Qc7 {[%clk 0:02:18.8]} 15. Nb5 {[%clk 0:02:08]}
15... Bxb5 {[%clk 0:02:16.3]} 16. Bxb5 {[%clk 0:02:08.9]} 16... a6 {[%clk
0:01:24.8]} 17. Be2 {[%clk 0:02:00.5]} 17... Rc8 {[%clk 0:01:17]} 18. c3 {[%clk
0:01:58.7]} 18... Qa5 {[%clk 0:01:04.7]} 19. Kb1 {[%clk 0:01:56.7]} 19... Qe5
{[%clk 0:00:55.5]} 20. Rh1 {[%clk 0:01:27.5]} 20... Rxh1 {[%clk 0:00:51]} 21.
Rxh1 {[%clk 0:01:28.4]} 21... Qxd4 {[%clk 0:00:50.3]} 22. cxd4 {[%clk
0:01:27.1]} 22... Nb6 {[%clk 0:00:40]} 23. d5 {[%clk 0:01:04]} 23... Nc4 {[%clk
0:00:36.3]} 24. Bc1 {[%clk 0:00:59.5]} 24... e5 {[%clk 0:00:21.4]} 25. Bg4
{[%clk 0:00:54.1]} 25... Rc7 {[%clk 0:00:20]} 26. b3 {[%clk 0:00:50.1]} 26...
Nb6 {[%clk 0:00:19.6]} 27. Be3 {[%clk 0:00:49.4]} 27... Nd7 {[%clk 0:00:19.2]}
28. f3 {[%clk 0:00:29.1]} 28... b5 {[%clk 0:00:18]} 29. Bd2 {[%clk 0:00:27.6]}
29... Nc5 {[%clk 0:00:17.6]} 30. Rc1 {[%clk 0:00:26.3]} 30... Kd8 {[%clk
0:00:16.3]} 31. Ba5 {[%clk 0:00:26.3]} 1-0

[Event "*** SCC Grand Prix: Titled Tuesday Blitz"]
[Site "Chess.com"]
[Date "2020.06.09"]
[Round "4"]
[White "rududuyk"]
[Black "Pudor"]
[Result "0-1"]
[WhiteElo "2187"]
[BlackElo "2391"]
[TimeControl "180+1"]
[EndTime "9:38:53 PDT"]
[Termination "Pudor won on time"]

1. e4 {[%clk 0:03:00.9]} 1... c5 {[%clk 0:02:59.7]} 2. Nc3 {[%clk 0:02:59.7]}
2... Nc6 {[%clk 0:02:59.5]} 3. f4 {[%clk 0:03:00.1]} 3... g6 {[%clk 0:02:59.3]}
4. Nf3 {[%clk 0:03:00.6]} 4... Bg7 {[%clk 0:02:55.8]} 5. Bc4 {[%clk 0:03:01]}
5... e6 {[%clk 0:02:55.6]} 6. O-O {[%clk 0:03:00.7]} 6... Nge7 {[%clk
0:02:55.2]} 7. d3 {[%clk 0:03:01.2]} 7... d5 {[%clk 0:02:53.6]} 8. Bb3 {[%clk
0:03:00]} 8... O-O {[%clk 0:02:53.1]} 9. Qe1 {[%clk 0:02:57.7]} 9... Nd4 {[%clk
0:02:50.9]} 10. f5 {[%clk 0:02:27.3]} 10... Nxb3 {[%clk 0:02:41.9]} 11. axb3
{[%clk 0:02:26.2]} 11... exf5 {[%clk 0:02:41.5]} 12. e5 {[%clk 0:02:07.8]} 12...
d4 {[%clk 0:02:36.2]} 13. Na4 {[%clk 0:01:52]} 13... Qc7 {[%clk 0:02:22.4]} 14.
b4 {[%clk 0:01:26.9]} 14... cxb4 {[%clk 0:02:18]} 15. Qxb4 {[%clk 0:01:14.2]}
15... Nc6 {[%clk 0:02:09]} 16. Qe1 {[%clk 0:00:54.8]} 16... Re8 {[%clk
0:02:06.6]} 17. Bf4 {[%clk 0:00:43.1]} 17... Be6 {[%clk 0:02:04.3]} 18. Qh4
{[%clk 0:00:30.8]} 18... Bd5 {[%clk 0:01:47.5]} 19. Ng5 {[%clk 0:00:27.6]} 19...
h6 {[%clk 0:01:45.7]} 20. Nh3 {[%clk 0:00:26.7]} 20... Qe7 {[%clk 0:01:39.6]}
21. Bg5 {[%clk 0:00:20.2]} 21... hxg5 {[%clk 0:01:34.2]} 22. Nxg5 {[%clk
0:00:19.7]} 22... Qxe5 {[%clk 0:01:12.9]} 23. Rae1 {[%clk 0:00:15.3]} 23... Qf6
{[%clk 0:01:06.2]} 24. Qh7+ {[%clk 0:00:06.3]} 24... Kf8 {[%clk 0:01:04.8]} 25.
Nc5 {[%clk 0:00:04]} 25... Qd6 {[%clk 0:00:38.5]} 26. Nxb7 {[%clk 0:00:01.1]}
26... Qb4 {[%clk 0:00:26.6]} 0-1